bitfinex-derivatives/quotes_BTCF0:USTF0_20260119
["timestamp","ask_amount","ask_price","bid_price","bid_amount"]
[1768794971742,0.02344132,92727.0,92717.0,0.01079]
[1768794971937,0.10591622,92728.0,92717.0,0.01079]
[1768794972142,0.02344129,92727.0,92717.0,0.01079]
[1768794972438,0.02344774,92726.0,92717.0,0.01079]
[1768794972646,0.10591622,92728.0,92717.0,0.01079]
[1768794972847,0.02344775,92727.0,92717.0,0.01079]
[1768794973044,0.02344775,92726.0,92717.0,0.01079]
[1768794973244,0.10591622,92728.0,92717.0,0.01079]
[1768794973449,0.02345769,92727.0,92717.0,0.01079]
[1768794973651,0.02345769,92726.0,92717.0,0.01079]
[1768794973840,0.02345769,92725.0,92717.0,0.01079]
[1768794974041,0.10560692,92724.0,92705.0,0.09712]
[1768794974846,0.00822262,92728.0,92717.0,0.01079]
[1768794975152,0.0234634,92727.0,92717.0,0.01079]
[1768794975346,0.0234634,92726.0,92717.0,0.01079]
[1768794975542,0.0234634,92725.0,92717.0,0.01079]
[1768794975744,0.0234634,92724.0,92717.0,0.01079]
[1768794975944,0.00822262,92728.0,92717.0,0.01079]
[1768794976145,0.02347054,92727.0,92717.0,0.01079]
[1768794976352,0.02347054,92726.0,92717.0,0.01079]
[1768794976551,0.02347054,92725.0,92707.0,0.00965209]
[1768794976751,0.02347054,92724.0,92707.0,0.00965209]
[1768794976952,0.10560319,92727.0,92715.0,0.01079]
[1768794977153,0.0234712,92726.0,92715.0,0.01079]
[1768794977345,0.0234712,92725.0,92715.0,0.01079]
[1768794977545,0.0234712,92724.0,92715.0,0.01079]
[1768794977852,0.0234712,92723.0,92718.0,0.01079]
[1768794978047,0.10560319,92727.0,92718.0,0.01079]
[1768794978353,0.02347147,92726.0,92717.0,0.01079]
[1768794978652,0.02347147,92725.0,92717.0,0.01079]
[1768794978850,0.02347147,92724.0,92717.0,0.01079]
[1768794979044,0.02347147,92723.0,92717.0,0.01079]
[1768794979243,0.10560319,92727.0,92717.0,0.01079]
[1768794979445,0.0234707,92726.0,92717.0,0.01079]
[1768794979653,0.0234707,92725.0,92717.0,0.01079]
[1768794979853,0.0234707,92724.0,92717.0,0.01079]
[1768794980042,0.10560319,92727.0,92713.0,0.01079]
[1768794980043,0.0234707,92723.0,92713.0,0.01079]
[1768794980244,0.10560319,92727.0,92713.0,0.01079]
[1768794980544,0.02347056,92726.0,92715.0,0.01079]
[1768794980743,0.02347056,92725.0,92715.0,0.01079]
[1768794980943,0.02347056,92724.0,92717.0,0.01079]
[1768794981153,0.02347056,92723.0,92717.0,0.01079]
[1768794981346,0.10560319,92727.0,92717.0,0.01079]
[1768794981547,0.02347082,92726.0,92717.0,0.01079]
[1768794981743,0.02347082,92726.0,92707.0,0.00965209]
[1768794981744,0.02347082,92725.0,92707.0,0.00965209]
[1768794981952,0.0973843,92727.0,92716.0,0.01079]
[1768794982254,0.02347092,92726.0,92718.0,0.01079]
[1768794982455,0.02347092,92725.0,92718.0,0.01079]
[1768794982751,0.00809907,92740.0,92715.0,0.009156]
[1768794983053,0.00809907,92740.0,92717.0,0.009156]
[1768794983054,0.09712,92737.0,92717.0,0.009156]
[1768794983256,0.2035715,92737.0,92717.0,0.009156]
[1768794983553,0.1064515,92735.0,92717.0,0.009156]
[1768794983743,0.1064515,92735.0,92714.0,0.10611985]
[1768794984144,0.1064515,92734.0,92714.0,0.10611985]
[1768794984755,0.09835243,92744.0,92732.0,0.010788]
[1768794985653,0.10645366,92744.0,92732.0,0.010788]
[1768794986156,0.10645366,92743.0,92732.0,0.010788]
[1768794986742,0.09712,92746.0,92732.0,0.010788]
[1768794987046,0.09712,92746.0,92734.0,0.010788]
[1768794987543,0.00808737,92749.0,92734.0,0.010788]
[1768794987748,0.1064398,92749.0,92734.0,0.010788]
[1768794987952,0.1064398,92745.0,92730.0,0.010788]
[1768794988354,0.1064398,92745.0,92732.0,0.00016173]
[1768794989850,0.00809966,92744.0,92732.0,0.00016173]
[1768794990053,0.10645209,92744.0,92732.0,0.00016173]
[1768794990758,0.00809966,92743.0,92732.0,0.00016173]
[1768794990955,0.107906,92753.0,92732.0,0.00016173]
[1768794990956,0.1064559,92742.0,92732.0,0.00016173]
[1768794991153,0.10629417,92740.0,92727.0,0.010789]
[1768794991650,0.10629417,92740.0,92724.0,0.010789]
[1768794992964,0.10629417,92740.0,92721.0,0.009156]
[1768794992965,0.0079547,92730.0,92712.0,0.05047804]
[1768794993160,0.10630713,92728.0,92713.0,0.09712]
[1768794994258,0.09835243,92728.0,92718.0,0.01079]
[1768794994758,0.09835243,92728.0,92718.0,0.01062834]
[1768794996754,0.09835243,92728.0,92715.0,0.01079]
[1768794997054,0.10639012,92728.0,92716.0,0.09712]
[1768794997852,0.10639012,92728.0,92717.0,0.01079]
[1768794998462,0.00016173,92731.0,92717.0,0.01079]
[1768794998961,0.00016173,92731.0,92719.0,0.01079]
[1768794999346,0.00016173,92731.0,92716.0,0.09712]
[1768794999347,0.00016173,92731.0,92721.0,0.010789]
[1768795000254,0.00802266,92730.0,92721.0,0.010789]
[1768795000460,0.0989897,92730.0,92721.0,0.010789]
[1768795001263,0.0989897,92730.0,92717.0,0.01079]
[1768795003359,0.0989897,92730.0,92720.0,0.010789]
[1768795004162,0.0989897,92730.0,92716.0,0.10791]
[1768795006254,0.00798721,92729.0,92716.0,0.10791]
[1768795006758,0.00798721,92729.0,92718.0,0.01079]
[1768795006964,0.00799967,92728.0,92718.0,0.01079]
[1768795007558,0.09096704,92729.0,92718.0,0.01079]
[1768795007862,0.00016173,92731.0,92718.0,0.01079]
[1768795009666,0.09915229,92731.0,92718.0,0.01079]
[1768795011465,0.09915229,92731.0,92720.0,0.010789]
[1768795012262,0.09915229,92731.0,92716.0,0.09712]
[1768795012263,0.00016173,92731.0,92716.0,0.10654824]
[1768795012974,0.00016173,92731.0,92724.0,0.010789]
[1768795014568,0.00016173,92731.0,92721.0,0.010789]
[1768795014867,0.00016173,92731.0,92723.0,0.010789]
[1768795015267,0.00016173,92731.0,92725.0,0.010789]
[1768795015463,0.00016173,92731.0,92723.0,0.010789]
[1768795016764,0.20095675,92743.0,92722.0,0.00976869]
[1768795016965,0.10403506,92741.0,92722.0,0.02055769]
[1768795017169,0.12718138,92740.0,92722.0,0.02055769]
[1768795017360,0.12718138,92739.0,92722.0,0.010789]
[1768795017560,0.02314632,92738.0,92722.0,0.010789]
[1768795018071,0.10403506,92737.0,92722.0,0.010789]
[1768795019260,0.02314821,92736.0,92722.0,0.010789]
[1768795019457,0.10403506,92737.0,92722.0,0.010789]
[1768795019661,0.02315033,92736.0,92722.0,0.010789]
[1768795019862,0.10403506,92737.0,92722.0,0.010789]
[1768795020162,0.09606014,92737.0,92724.0,0.010789]
[1768795020360,0.02315168,92736.0,92726.0,0.010789]
[1768795020561,0.10406509,92741.0,92726.0,0.010789]
[1768795020771,0.12721662,92740.0,92723.0,0.010789]
[1768795020971,0.02315153,92739.0,92720.0,0.15503559]
[1768795021369,0.1272506,92739.0,92724.0,0.010789]
[1768795021569,0.02315153,92738.0,92724.0,0.010789]
[1768795023567,0.02315153,92738.0,92726.0,0.010789]
[1768795024676,0.02315153,92738.0,92722.0,0.010789]
[1768795026676,0.02315153,92738.0,92724.0,0.010789]
[1768795027461,0.02315153,92738.0,92725.0,0.00976869]
[1768795027668,0.09606014,92747.0,92729.0,0.00976869]
[1768795027870,0.12028441,92746.0,92732.0,0.010788]
[1768795028166,0.12729541,92745.0,92732.0,0.010788]
[1768795028365,0.12729541,92744.0,92732.0,0.010788]
[1768795028567,0.12729541,92743.0,92729.0,0.010788]
[1768795028775,0.12729541,92742.0,92729.0,0.010788]
[1768795028966,0.02316441,92741.0,92729.0,0.010788]
[1768795029165,0.104131,92742.0,92729.0,0.010788]
[1768795029376,0.02316273,92741.0,92729.0,0.010788]
[1768795029676,0.104131,92742.0,92729.0,0.010788]
[1768795029977,0.02316137,92741.0,92729.0,0.010788]
[1768795030186,0.104131,92742.0,92731.0,0.010788]
[1768795033678,0.09606014,92742.0,92731.0,0.010788]
[1768795034579,0.09606014,92742.0,92733.0,0.010788]
[1768795036278,0.00787345,92748.0,92733.0,0.010788]
[1768795036479,0.10393359,92746.0,92733.0,0.010788]
[1768795036674,0.00787345,92744.0,92733.0,0.010788]
[1768795036884,0.10393359,92744.0,92733.0,0.010788]
[1768795037387,0.10395419,92743.0,92733.0,0.010788]
[1768795038072,0.10395419,92743.0,92730.0,0.010788]
[1768795041082,0.1039983,92742.0,92730.0,0.010788]
[1768795049790,0.00794827,92741.0,92730.0,0.010788]
[1768795056495,0.00794827,92741.0,92729.0,0.00016173]
[1768795059692,0.00794827,92741.0,92730.0,0.010788]
[1768795063789,0.00794827,92741.0,92729.0,0.00016173]
[1768795064698,0.09891258,92741.0,92729.0,0.00016173]
[1768795067095,0.00801485,92732.0,92722.0,0.05019847]
[1768795067294,0.09096431,92731.0,92710.0,0.1452669]
[1768795067492,0.10175231,92731.0,92710.0,0.1452669]
[1768795067689,0.1452669,92720.0,92710.0,0.10783415]
[1768795068001,0.09096431,92717.0,92696.0,0.010792]
[1768795068196,0.09096431,92717.0,92698.0,0.010792]
[1768795068694,0.00016173,92716.0,92700.0,0.010792]
[1768795070599,0.00016173,92716.0,92702.0,0.010791]
[1768795071900,0.00031126,92716.0,92702.0,0.02629702]
[1768795072903,0.00016332,92715.0,92702.0,0.02629702]
[1768795074199,0.00016173,92716.0,92702.0,0.02629702]
[1768795076300,0.00016173,92716.0,92703.0,0.10883722]
[1768795076697,0.00016173,92716.0,92706.0,0.010791]
[1768795076893,0.00016173,92716.0,92703.0,0.10883722]
[1768795078501,0.00016173,92716.0,92704.0,0.010791]
[1768795079202,0.00016173,92716.0,92703.0,0.10883722]
[1768795081904,0.00016173,92716.0,92704.0,0.010791]
[1768795082104,0.00016173,92716.0,92704.0,0.1099424]
[1768795083919,0.00016173,92716.0,92704.0,0.0991514]
[1768795084208,0.00016173,92716.0,92704.0,0.1099424]
[1768795085807,0.00016173,92716.0,92704.0,0.0991514]
[1768795087800,0.00016173,92716.0,92706.0,0.0991514]
[1768795092015,0.00016173,92716.0,92706.0,0.10883722]
[1768795092314,0.00016173,92716.0,92706.0,0.11962822]
[1768795092702,0.00237263,92724.0,92710.0,0.11962822]
[1768795092902,0.00237263,92724.0,92712.0,0.0991514]
[1768795094414,0.00237263,92724.0,92718.0,0.10883722]
[1768795094716,0.00237252,92729.0,92718.0,0.10883722]
[1768795094911,0.02358108,92728.0,92718.0,0.0991514]
[1768795095112,0.02358108,92727.0,92718.0,0.0991514]
[1768795095308,0.00237252,92729.0,92718.0,0.0991514]
[1768795095519,0.02359045,92728.0,92718.0,0.0991514]
[1768795095713,0.02359045,92727.0,92718.0,0.0991514]
[1768795095914,0.00237252,92729.0,92718.0,0.0991514]
[1768795096116,0.02359061,92728.0,92718.0,0.0991514]
[1768795096418,0.02359061,92727.0,92718.0,0.0991514]
[1768795096607,0.02359061,92726.0,92718.0,0.0991514]
[1768795096808,0.02359061,92725.0,92718.0,0.0991514]
[1768795097020,0.00237252,92729.0,92718.0,0.0991514]
[1768795097221,0.02360348,92728.0,92718.0,0.0991514]
[1768795097414,0.02360348,92727.0,92718.0,0.0991514]
[1768795097718,0.00237252,92729.0,92718.0,0.0991514]
[1768795097719,0.02360348,92726.0,92718.0,0.10883722]
[1768795098019,0.02360348,92725.0,92718.0,0.10883722]
[1768795098219,0.02360348,92724.0,92718.0,0.10883722]
[1768795098420,0.02360348,92723.0,92718.0,0.10883722]
[1768795098608,0.00237252,92729.0,92718.0,0.10883722]
[1768795098908,0.02362354,92728.0,92718.0,0.10883722]
[1768795099109,0.02362354,92727.0,92718.0,0.10883722]
[1768795099307,0.02362354,92726.0,92718.0,0.10883722]
[1768795099515,0.02362354,92725.0,92718.0,0.0991514]
[1768795099716,0.02362354,92724.0,92718.0,0.0991514]
[1768795099915,0.02362354,92723.0,92718.0,0.0991514]
[1768795100115,0.00237252,92729.0,92718.0,0.0991514]
[1768795100316,0.02362213,92728.0,92718.0,0.0991514]
[1768795100515,0.02362213,92727.0,92718.0,0.0991514]
[1768795100810,0.02362213,92726.0,92718.0,0.0991514]
[1768795101013,0.02362213,92725.0,92718.0,0.0991514]
[1768795101317,0.02362213,92724.0,92718.0,0.0991514]
[1768795101619,0.00237252,92729.0,92718.0,0.0991514]
[1768795101821,0.02362142,92728.0,92718.0,0.0991514]
[1768795102121,0.02362142,92727.0,92718.0,0.0991514]
[1768795102322,0.02362142,92726.0,92718.0,0.0991514]
[1768795102525,0.02362142,92725.0,92718.0,0.0991514]
[1768795102817,0.02362142,92724.0,92718.0,0.0991514]
[1768795103032,0.00237252,92729.0,92718.0,0.0991514]
[1768795103220,0.02362084,92728.0,92718.0,0.0991514]
[1768795103521,0.02362084,92727.0,92718.0,0.0991514]
[1768795103724,0.02362084,92726.0,92718.0,0.0991514]
[1768795103923,0.02362084,92725.0,92718.0,0.0991514]
[1768795104126,0.02362084,92724.0,92718.0,0.0991514]
[1768795104316,0.00237252,92729.0,92718.0,0.0991514]
[1768795104517,0.0236203,92728.0,92718.0,0.0991514]
[1768795104825,0.0236203,92727.0,92718.0,0.0991514]
[1768795105124,0.0236203,92726.0,92718.0,0.0991514]
[1768795105316,0.0236203,92725.0,92718.0,0.0991514]
[1768795105516,0.0236203,92724.0,92718.0,0.0991514]
[1768795105716,0.00237252,92729.0,92718.0,0.0991514]
[1768795105917,0.0236202,92728.0,92718.0,0.0991514]
[1768795106117,0.0236202,92727.0,92718.0,0.0991514]
[1768795106425,0.0236202,92726.0,92718.0,0.0991514]
[1768795106626,0.0236202,92725.0,92718.0,0.0991514]
[1768795106921,0.0236202,92724.0,92718.0,0.0991514]
[1768795107125,0.02378819,92723.0,92718.0,0.0991514]
[1768795107323,0.00237252,92729.0,92718.0,0.0991514]
[1768795107524,0.02378805,92728.0,92718.0,0.0991514]
[1768795107722,0.02378805,92727.0,92718.0,0.0991514]
[1768795107925,0.02378805,92726.0,92718.0,0.0991514]
[1768795108127,0.02378805,92725.0,92718.0,0.0991514]
[1768795108326,0.02378805,92724.0,92718.0,0.0991514]
[1768795108518,0.00237252,92729.0,92718.0,0.0991514]
[1768795108719,0.02378814,92728.0,92718.0,0.0991514]
[1768795108927,0.02378814,92727.0,92718.0,0.0991514]
[1768795109124,0.02378814,92726.0,92718.0,0.0991514]
[1768795109426,0.02378814,92725.0,92718.0,0.0991514]
[1768795109726,0.02378814,92724.0,92718.0,0.0991514]
[1768795109929,0.09949252,92729.0,92718.0,0.0991514]
[1768795110226,0.02378808,92728.0,92718.0,0.0991514]
[1768795110531,0.02378808,92727.0,92718.0,0.0991514]
[1768795110830,0.02378808,92726.0,92718.0,0.0991514]
[1768795111016,0.02378808,92725.0,92718.0,0.0991514]
[1768795111216,0.02378808,92724.0,92718.0,0.0991514]
[1768795111412,0.09949252,92729.0,92718.0,0.0991514]
[1768795111628,0.02378837,92728.0,92720.0,0.11097251]
[1768795111823,0.02378837,92727.0,92720.0,0.11097251]
[1768795112017,0.010788,92738.0,92722.0,0.11097251]
[1768795112217,0.09712,92737.0,92722.0,0.11097251]
[1768795112418,0.09712,92737.0,92722.0,0.09028388]
[1768795113029,0.010788,92736.0,92722.0,0.09028388]
[1768795113325,0.010788,92733.0,92722.0,0.09028388]
[1768795114828,0.010788,92731.0,92722.0,0.09028388]
[1768795116435,0.010789,92729.0,92722.0,0.09028388]
[1768795117133,0.01946159,92736.0,92722.0,0.09028388]
[1768795117323,0.010788,92731.0,92722.0,0.09028388]
[1768795117937,0.010789,92728.0,92722.0,0.09028388]
[1768795118933,0.010789,92728.0,92717.0,0.09209412]
[1768795119232,0.010789,92728.0,92717.0,0.12090787]
[1768795119533,0.010789,92728.0,92718.0,0.09209412]
[1768795119734,0.010789,92725.0,92718.0,0.09209412]
[1768795122738,0.010789,92725.0,92718.0,0.12090787]
[1768795123138,0.010789,92728.0,92719.0,0.09209412]
[1768795124140,0.02369293,92727.0,92719.0,0.09209412]
[1768795124439,0.03448193,92726.0,92719.0,0.09209412]
[1768795124639,0.02369293,92725.0,92719.0,0.09209412]
[1768795125141,0.010789,92724.0,92712.0,0.00016173]
[1768795125341,0.02369293,92723.0,92713.0,0.02881375]
[1768795127229,0.02369293,92723.0,92714.0,0.12090787]
[1768795127641,0.02369293,92723.0,92715.0,0.12090787]
[1768795132238,0.02369293,92722.0,92715.0,0.12090787]
[1768795132434,0.02369293,92721.0,92715.0,0.12090787]
[1768795132646,0.010789,92724.0,92715.0,0.12090787]
[1768795132846,0.02369358,92723.0,92715.0,0.12090787]
[1768795133052,0.02369358,92722.0,92715.0,0.12090787]
[1768795133246,0.010789,92724.0,92715.0,0.12090787]
[1768795133549,0.02369347,92723.0,92715.0,0.12090787]
[1768795133747,0.02369347,92722.0,92715.0,0.12090787]
[1768795133947,0.02369345,92721.0,92715.0,0.12090787]
[1768795134148,0.010789,92724.0,92715.0,0.12090787]
[1768795134343,0.02369333,92723.0,92715.0,0.12090787]
[1768795134543,0.02369333,92722.0,92715.0,0.12090787]
[1768795134745,0.02369312,92721.0,92715.0,0.12090787]
[1768795134944,0.010789,92724.0,92715.0,0.12090787]
[1768795135145,0.02369291,92723.0,92715.0,0.12090787]
[1768795135346,0.02369291,92722.0,92715.0,0.12090787]
[1768795135550,0.010789,92724.0,92715.0,0.12090787]
[1768795135551,0.0236928,92721.0,92715.0,0.12090787]
[1768795135750,0.010789,92724.0,92715.0,0.12090787]
[1768795135946,0.010787,92746.0,92712.0,0.00016173]
[1768795136147,0.010786,92753.0,92715.0,0.0345652]
[1768795136148,0.13285339,92740.0,92715.0,0.0345652]
[1768795136445,0.13285339,92740.0,92714.0,0.09666479]
[1768795136446,0.010788,92732.0,92714.0,0.09666479]
[1768795136643,0.010788,92730.0,92714.0,0.13122999]
[1768795136844,0.010788,92733.0,92716.0,0.0345652]
[1768795137044,0.010788,92733.0,92717.0,0.0345652]
[1768795137245,0.010788,92733.0,92718.0,0.0345652]
[1768795140453,0.010788,92733.0,92719.0,0.0345652]
[1768795142553,0.010788,92733.0,92718.0,0.13122999]
[1768795142753,0.010788,92733.0,92719.0,0.0345652]
[1768795142954,0.1453135,92730.0,92719.0,0.0345652]
[1768795144257,0.1453135,92730.0,92718.0,0.09666479]
[1768795144956,0.1561015,92730.0,92718.0,0.09666479]
[1768795145152,0.17952384,92730.0,92712.0,0.00016173]
[1768795145648,0.17952384,92730.0,92712.0,0.03472693]
[1768795146157,0.1453135,92730.0,92712.0,0.03472693]
[1768795146561,0.010789,92726.0,92712.0,0.03472693]
[1768795148152,0.010789,92724.0,92712.0,0.03472693]
[1768795150154,0.010789,92725.0,92712.0,0.03472693]
[1768795150353,0.02352951,92724.0,92712.0,0.03472693]
[1768795150555,0.010789,92725.0,92712.0,0.03472693]
[1768795151060,0.02352959,92724.0,92712.0,0.03472693]
[1768795151260,0.010789,92725.0,92712.0,0.03472693]
[1768795151559,0.02352892,92724.0,92712.0,0.03472693]
[1768795151758,0.010789,92725.0,92712.0,0.03472693]
[1768795152060,0.02352894,92724.0,92712.0,0.03472693]
[1768795152261,0.010789,92725.0,92712.0,0.03472693]
[1768795152457,0.023529,92724.0,92712.0,0.03472693]
[1768795152658,0.010789,92725.0,92712.0,0.03472693]
[1768795152961,0.02352901,92724.0,92712.0,0.03472693]
[1768795153159,0.010789,92725.0,92712.0,0.03472693]
[1768795153360,0.02352903,92724.0,92712.0,0.03472693]
[1768795153559,0.010789,92725.0,92712.0,0.03472693]
[1768795153859,0.02352904,92724.0,92712.0,0.03472693]
[1768795154059,0.010789,92725.0,92712.0,0.03472693]
[1768795154252,0.02352746,92724.0,92712.0,0.03472693]
[1768795154453,0.010789,92725.0,92712.0,0.03472693]
[1768795154660,0.02352774,92724.0,92712.0,0.03472693]
[1768795154855,0.010789,92725.0,92712.0,0.03472693]
[1768795155056,0.02352775,92724.0,92712.0,0.03472693]
[1768795155249,0.010789,92725.0,92712.0,0.03472693]
[1768795155449,0.02352775,92724.0,92712.0,0.13139172]
[1768795155653,0.010789,92725.0,92712.0,0.13139172]
[1768795155853,0.010789,92723.0,92712.0,0.13139172]
[1768795159860,0.010789,92723.0,92713.0,0.0345652]
[1768795164667,0.010789,92727.0,92713.0,0.0345652]
[1768795164862,0.02352458,92726.0,92713.0,0.0345652]
[1768795165063,0.010789,92727.0,92718.0,0.02414902]
[1768795165265,0.09712,92729.0,92718.0,0.02414902]
[1768795167276,0.09712,92729.0,92720.0,0.010789]
[1768795169382,0.0742169,92729.0,92722.0,0.010789]
[1768795169574,0.0742169,92729.0,92722.0,0.01926517]
[1768795169774,0.0742169,92729.0,92722.0,0.010789]
[1768795171068,0.0742169,92729.0,92724.0,0.010789]
[1768795172078,9e-07,92729.0,92724.0,0.010789]
[1768795172278,0.09712,92735.0,92724.0,0.010789]
[1768795174183,0.09712,92735.0,92726.0,0.010789]
[1768795176083,0.09712,92735.0,92723.0,0.09811474]
[1768795176983,0.02339877,92734.0,92724.0,0.010789]
[1768795177183,0.02339877,92733.0,92724.0,0.010789]
[1768795177486,0.02339877,92732.0,92724.0,0.010789]
[1768795177669,0.09712,92735.0,92724.0,0.010789]
[1768795177670,0.02339877,92731.0,92724.0,0.010789]
[1768795177869,0.02339877,92730.0,92724.0,0.010789]
[1768795178087,0.02339877,92729.0,92724.0,0.010789]
[1768795178375,7.7e-07,92728.0,92724.0,0.010789]
[1768795178580,0.09712,92735.0,92724.0,0.010789]
[1768795178776,0.09712,92744.0,92729.0,0.0931695]
[1768795178979,0.09712,92748.0,92730.0,0.09775287]
[1768795179275,0.107906,92748.0,92730.0,0.09775287]
[1768795179482,0.02001628,92747.0,92730.0,0.09333123]
[1768795181593,0.02001628,92747.0,92731.0,0.010788]
[1768795183187,0.02001628,92747.0,92734.0,0.010788]
[1768795183377,0.02001628,92747.0,92730.0,0.00016173]
[1768795183773,0.02001628,92747.0,92733.0,0.010788]
[1768795184189,0.02001628,92747.0,92730.0,0.00016173]
[1768795185489,0.02001628,92747.0,92734.0,0.010788]
[1768795185885,0.02001628,92747.0,92736.0,0.010788]
[1768795186189,0.09712,92748.0,92736.0,0.010788]
[1768795186386,0.11713628,92748.0,92738.0,0.010787]
[1768795186982,0.09712,92748.0,92738.0,0.010787]
[1768795189089,0.11713628,92748.0,92738.0,0.010787]
[1768795190284,0.02326624,92747.0,92738.0,0.010787]
[1768795190485,0.02326624,92746.0,92738.0,0.010787]
[1768795190792,0.02326624,92745.0,92738.0,0.010787]
[1768795190993,0.02326624,92744.0,92738.0,0.010787]
[1768795191195,0.02326624,92743.0,92738.0,0.010787]
[1768795191393,0.11713628,92748.0,92738.0,0.010787]
[1768795191583,0.02326557,92747.0,92738.0,0.010787]
[1768795191784,0.02326557,92746.0,92738.0,0.010787]
[1768795191996,0.02326557,92745.0,92738.0,0.010787]
[1768795192194,0.02326557,92744.0,92738.0,0.010787]
[1768795192396,0.02326557,92743.0,92738.0,0.010787]
[1768795192594,0.11713628,92748.0,92738.0,0.010787]
[1768795192782,0.02326547,92747.0,92738.0,0.010787]
[1768795192987,0.02326547,92746.0,92738.0,0.010787]
[1768795193282,0.02326547,92745.0,92738.0,0.010787]
[1768795193482,0.02326547,92744.0,92738.0,0.010787]
[1768795193685,0.02326547,92743.0,92738.0,0.010787]
[1768795193886,0.11713628,92748.0,92738.0,0.010787]
[1768795194084,0.02326151,92747.0,92738.0,0.010787]
[1768795194285,0.02326151,92746.0,92738.0,0.010787]
[1768795194485,0.02326151,92745.0,92738.0,0.010787]
[1768795194685,0.02326151,92744.0,92738.0,0.010787]
[1768795194884,0.02326151,92743.0,92738.0,0.010787]
[1768795195195,0.11713628,92748.0,92738.0,0.010787]
[1768795195393,0.02326011,92747.0,92738.0,0.010787]
[1768795195698,0.02326011,92746.0,92738.0,0.010787]
[1768795195901,0.02326011,92745.0,92738.0,0.010787]
[1768795196097,0.02326011,92744.0,92738.0,0.010787]
[1768795196299,0.02326011,92743.0,92738.0,0.010787]
[1768795196495,0.02326083,92742.0,92738.0,0.010787]
[1768795196697,0.11713628,92748.0,92738.0,0.010787]
[1768795197004,0.01818744,92747.0,92738.0,0.010787]
[1768795197708,0.01818744,92747.0,92730.0,0.00016173]
[1768795198609,0.1453135,92740.0,92730.0,0.00016173]
[1768795198900,0.01818744,92746.0,92730.0,0.00016173]
[1768795199408,0.01818744,92745.0,92730.0,0.00016173]
[1768795200708,0.11806502,92745.0,92730.0,0.00016173]
[1768795201005,0.1453135,92740.0,92730.0,0.00016173]
[1768795202107,0.01818744,92739.0,92730.0,0.00016173]
[1768795202307,0.01818744,92739.0,92720.0,0.09234358]
[1768795202308,0.01818744,92738.0,92727.0,0.09712]
[1768795202506,0.01818744,92730.0,92709.0,0.00237303]
[1768795202706,0.01818744,92728.0,92716.0,0.01079]
[1768795203100,0.09987758,92734.0,92720.0,0.010789]
[1768795203306,0.09987758,92739.0,92720.0,0.010789]
[1768795203618,0.00016173,92731.0,92720.0,0.010789]
[1768795203918,0.00016173,92731.0,92716.0,0.01079]
[1768795204711,0.10003931,92731.0,92712.0,0.10313358]
[1768795204914,0.010788,92730.0,92712.0,0.09234358]
[1768795205713,0.01818744,92726.0,92713.0,0.09712]
[1768795205911,0.01818744,92722.0,92710.0,0.09712]
[1768795206609,0.010789,92724.0,92710.0,0.09712]
[1768795206811,0.01079,92712.0,92693.0,0.09247525]
[1768795207013,0.14530616,92730.0,92693.0,0.09247525]
[1768795207014,0.01818744,92710.0,92694.0,0.010792]
[1768795207316,0.01818744,92714.0,92699.0,0.00237401]
[1768795207513,0.01818744,92714.0,92698.0,0.010792]
[1768795207708,0.00016173,92711.0,92699.0,0.00237401]
[1768795208030,0.00016173,92711.0,92697.0,0.09234358]
[1768795208220,0.00016173,92711.0,92695.0,0.01225736]
[1768795208221,0.00016173,92711.0,92701.0,0.00237401]
[1768795208428,0.00016173,92711.0,92700.0,0.00237401]
[1768795208624,0.00016173,92711.0,92699.0,0.00237401]
[1768795208821,0.00016173,92711.0,92701.0,0.00237401]
[1768795209022,0.00016173,92711.0,92699.0,0.00237401]
[1768795209528,0.00016173,92711.0,92702.0,0.00237401]
[1768795209714,0.00016173,92711.0,92699.0,0.00237401]
[1768795210123,0.00016173,92711.0,92701.0,0.00237401]
[1768795210421,0.01834917,92711.0,92698.0,0.00237401]
[1768795210814,0.01818744,92710.0,92701.0,0.00237401]
[1768795211019,0.01818744,92710.0,92698.0,0.00237401]
[1768795211227,0.01818744,92710.0,92701.0,0.00237401]
[1768795211427,0.01818744,92707.0,92693.0,0.01586418]
[1768795211732,0.01818744,92706.0,92691.0,0.09712]
[1768795211916,0.01818744,92706.0,92691.0,0.1121524]
[1768795212115,0.01818744,92706.0,92691.0,0.0150324]
[1768795212317,0.01818744,92706.0,92689.0,0.09949354]
[1768795212525,8.81e-05,92705.0,92689.0,0.09949354]
[1768795213327,0.01818744,92703.0,92689.0,0.00237354]
[1768795213528,0.010792,92702.0,92689.0,0.00237354]
[1768795213921,0.01818744,92703.0,92689.0,0.01786585]
[1768795214629,0.01818744,92699.0,92689.0,0.00237354]
[1768795214827,0.010792,92698.0,92684.0,0.09949366]
[1768795215016,0.010792,92702.0,92684.0,0.09949366]
[1768795215528,0.01818744,92686.0,92667.0,0.010796]
[1768795215723,0.01818744,92685.0,92667.0,0.107916]
[1768795216124,0.01818744,92688.0,92669.0,0.01721325]
[1768795216427,1e-08,92685.0,92675.0,0.10955683]
[1768795216633,0.09712,92708.0,92690.0,0.10955683]
[1768795216935,0.09712,92708.0,92691.0,0.10955683]
[1768795217232,0.09712,92708.0,92692.0,0.01721325]
[1768795217930,0.11530744,92708.0,92688.0,0.01721325]
[1768795218135,0.01818744,92703.0,92684.0,0.01721325]
[1768795218324,0.11806502,92702.0,92689.0,0.00016182]
[1768795218635,0.01818744,92701.0,92689.0,0.00016182]
[1768795218926,0.010792,92696.0,92689.0,0.00016182]
[1768795219132,0.010792,92696.0,92681.0,0.09712]
[1768795219718,0.010792,92696.0,92680.0,0.09234358]
[1768795220238,0.010792,92696.0,92679.0,0.09712]
[1768795220533,0.01818744,92697.0,92679.0,0.09712]
[1768795220534,0.010793,92693.0,92679.0,0.09712]
[1768795221128,0.010793,92693.0,92675.0,0.09234358]
[1768795221438,0.02898044,92693.0,92675.0,0.09234358]
[1768795221633,0.010793,92690.0,92675.0,0.09234358]
[1768795223736,0.02697887,92691.0,92669.0,0.04231614]
[1768795224038,0.09712,92697.0,92669.0,0.04231614]
[1768795224039,0.010794,92683.0,92669.0,0.13943614]
[1768795224432,7.903e-05,92682.0,92669.0,0.01432908]
[1768795224733,7.903e-05,92682.0,92666.0,0.09712]
[1768795224734,7.903e-05,92682.0,92666.0,0.107916]
[1768795225239,7.903e-05,92682.0,92666.0,0.13590306]
[1768795225540,0.02697887,92671.0,92654.0,0.00010172]
[1768795225726,0.09106113,92673.0,92655.0,0.010797]
[1768795226022,0.02697887,92674.0,92655.0,0.03878406]
[1768795226226,0.02697887,92674.0,92655.0,0.02798706]
[1768795226626,0.010795,92673.0,92655.0,0.02798706]
[1768795228740,0.010795,92670.0,92655.0,0.02798706]
[1768795228941,0.010795,92670.0,92654.0,0.01487756]